[Event "Titled Tuesday Blitz February 28 Early 2023"]
[White "Mammadzada, Gunay"]
[Black "Yilmaz, Mustafa"]
[WhiteFideId "13403729"]
[BlackFideId "6302718"]
[WhiteElo "2396"]
[BlackElo "2523"]
[Result "1-0"]
[Round "01"]
[TimeControl "180+2"]
[Date "2023.02.28"]
[WhiteClock "0:00:03"]
[BlackClock "0:00:01"]

1. e4 {[%clk 0:02:44]}  c5 {[%clk 0:02:58]} 2. Nf3 {[%clk 0:02:42]}  e6 {[%clk 0:02:54]} 3. d4 {[%clk 0:02:42]}  cxd4 {[%clk 0:02:54]} 4. Nxd4 {[%clk 0:02:43]}  Nc6 {[%clk 0:02:55]} 5. Nc3 {[%clk 0:02:38]}  Qc7 {[%clk 0:02:55]} 6. Be2 {[%clk 0:02:32]}  a6 {[%clk 0:02:53]} 7. Nxc6 {[%clk 0:02:31]}  Qxc6 {[%clk 0:02:49]} 8. Qd4 {[%clk 0:02:30]}  Qd6 {[%clk 0:02:42]} 9. Be3 {[%clk 0:02:28]}  Qxd4 {[%clk 0:02:37]} 10. Bxd4 {[%clk 0:02:29]}  Ne7 {[%clk 0:02:38]} 11. O-O-O {[%clk 0:02:29]}  Nc6 {[%clk 0:02:38]} 12. Be3 {[%clk 0:02:13]}  b5 {[%clk 0:02:35]} 13. f4 {[%clk 0:02:09]}  d6 {[%clk 0:02:04]} 14. Bf3 {[%clk 0:02:03]}  Bb7 {[%clk 0:02:03]} 15. Kb1 {[%clk 0:01:43]}  Be7 {[%clk 0:02:02]} 16. Ne2 {[%clk 0:01:39]}  Rc8 {[%clk 0:01:31]} 17. Rd2 {[%clk 0:01:32]}  O-O {[%clk 0:01:22]} 18. e5 {[%clk 0:01:12]}  d5 {[%clk 0:01:11]} 19. g4 {[%clk 0:00:38]}  Rfe8 {[%clk 0:01:08]} 20. g5 {[%clk 0:00:37]}  Na5 {[%clk 0:01:07]} 21. b3 {[%clk 0:00:37]}  Bb4 {[%clk 0:01:06]} 22. Rdd1 {[%clk 0:00:34]}  Nc6 {[%clk 0:01:01]} 23. h4 {[%clk 0:00:24]}  Ne7 {[%clk 0:00:34]} 24. Ng3 {[%clk 0:00:21]}  Bc3 {[%clk 0:00:32]} 25. Rhf1 {[%clk 0:00:11]}  a5 {[%clk 0:00:33]} 26. Bg4 {[%clk 0:00:10]}  a4 {[%clk 0:00:32]} 27. Bd4 {[%clk 0:00:09]}  b4 {[%clk 0:00:28]} 28. Ne2 {[%clk 0:00:07]}  Ba6 {[%clk 0:00:28]} 29. Rf2 {[%clk 0:00:07]}  Bxe2 {[%clk 0:00:26]} 30. Rxe2 {[%clk 0:00:08]}  Nc6 {[%clk 0:00:18]} 31. Bxc3 {[%clk 0:00:04]}  bxc3 {[%clk 0:00:19]} 32. f5 {[%clk 0:00:04]}  axb3 {[%clk 0:00:17]} 33. axb3 {[%clk 0:00:02]}  Ra8 {[%clk 0:00:07]} 34. fxe6 {[%clk 0:00:03]}  fxe6 {[%clk 0:00:06]} 35. Rd3 {[%clk 0:00:04]}  Rf8 {[%clk 0:00:04]} 36. Re1 {[%clk 0:00:03]}  Nb4 {[%clk 0:00:03]} 37. Bxe6+ {[%clk 0:00:03]}  Kh8 {[%clk 0:00:03]} 38. Rxc3 {[%clk 0:00:03]}  Ra6 {[%clk 0:00:03]} 39. Bd7 {[%clk 0:00:02]}  Rfa8 {[%clk 0:00:03]} 40. Ba4 {[%clk 0:00:03]}  d4 {[%clk 0:00:04]} 41. Rc4 {[%clk 0:00:03]}  Nd5 {[%clk 0:00:05]} 42. Kb2 {[%clk 0:00:02]}  Nc3 {[%clk 0:00:05]} 43. e6 {[%clk 0:00:02]}  Kg8 {[%clk 0:00:04]} 44. e7 {[%clk 0:00:02]}  Nxa4+ {[%clk 0:00:04]} 45. Rxa4 {[%clk 0:00:02]}  Rxa4 {[%clk 0:00:03]} 46. bxa4 {[%clk 0:00:03]}  Rb8+ {[%clk 0:00:03]} 47. Ka3 {[%clk 0:00:03]}  Re8 {[%clk 0:00:04]} 48. Kb4 {[%clk 0:00:03]}  Kf7 {[%clk 0:00:05]} 49. a5 {[%clk 0:00:03]}  Rb8+ {[%clk 0:00:05]} 50. Kc5 {[%clk 0:00:03]}  Ke8 {[%clk 0:00:04]} 51. a6 {[%clk 0:00:02]}  Rb2 {[%clk 0:00:04]} 52. a7 {[%clk 0:00:02]}  Rxc2+ {[%clk 0:00:04]} 53. Kb6 {[%clk 0:00:02]}  Rb2+ {[%clk 0:00:05]} 54. Kc7 {[%clk 0:00:03]}  Rc2+ {[%clk 0:00:06]} 55. Kb7 {[%clk 0:00:03]}  Rb2+ {[%clk 0:00:06]} 56. Kc8 {[%clk 0:00:04]}  Rc2+ {[%clk 0:00:07]} 57. Kb8 {[%clk 0:00:04]}  Rb2+ {[%clk 0:00:07]} 58. Ka8 {[%clk 0:00:04]}  d3 {[%clk 0:00:08]} 59. Rd1 {[%clk 0:00:03]}  d2 {[%clk 0:00:08]} 60. h5 {[%clk 0:00:03]}  Kxe7 {[%clk 0:00:08]} 61. g6 {[%clk 0:00:03]}  hxg6 {[%clk 0:00:08]} 62. hxg6 {[%clk 0:00:04]}  Kd6 {[%clk 0:00:07]} 63. Rf1 {[%clk 0:00:02]}  Kc5 {[%clk 0:00:06]} 64. Rd1 {[%clk 0:00:02]}  Kd4 {[%clk 0:00:05]} 65. Rf1 {[%clk 0:00:01]}  Ke3 {[%clk 0:00:05]} 66. Rh1 {[%clk 0:00:01]}  Ke2 {[%clk 0:00:03]} 67. Rh2+ {[%clk 0:00:01]}  Kd3 {[%clk 0:00:04]} 68. Rh3+ {[%clk 0:00:02]}  Kc2 {[%clk 0:00:04]} 69. Rh2 {[%clk 0:00:03]}  Kc1 {[%clk 0:00:04]} 70. Rh1+ {[%clk 0:00:02]}  Kc2 {[%clk 0:00:05]} 71. Rh2 {[%clk 0:00:02]}  Kb1 {[%clk 0:00:03]} 72. Rh1+ {[%clk 0:00:02]}  Ka2 {[%clk 0:00:04]} 73. Rd1 {[%clk 0:00:02]}  Ka3 {[%clk 0:00:02]} 74. Rg1 {[%clk 0:00:02]}  Kb3 {[%clk 0:00:02]} 75. Rf1 {[%clk 0:00:02]}  Kc2 {[%clk 0:00:02]} 76. Rf2 {[%clk 0:00:03]}  Kc1 {[%clk 0:00:01]} 77. Rf1+ {[%clk 0:00:03]}  Kc2 {[%clk 0:00:01]} 78. Rf2 {[%clk 0:00:03]} 1-0


[Site "https://www.chess.com"]

[Event "Titled Tuesday Blitz February 28 Early 2023"]
[White "Sanal, Vahap"]
[Black "Belov, Alexei"]
[WhiteFideId "6300545"]
[BlackFideId "4128206"]
[WhiteElo "2605"]
[BlackElo "2501"]
[Result "1-0"]
[Round "01"]
[TimeControl "180+2"]
[Date "2023.02.28"]
[WhiteClock "0:02:23"]
[BlackClock "0:02:27"]

1. Nf3 {[%clk 0:02:43]}  Nf6 {[%clk 0:02:59]} 2. b3 {[%clk 0:02:43]}  e6 {[%clk 0:02:58]} 3. Bb2 {[%clk 0:02:41]}  d5 {[%clk 0:02:58]} 4. g3 {[%clk 0:02:42]}  Ke7 {[%clk 0:02:58]} 5. Bg2 {[%clk 0:02:42]}  g6 {[%clk 0:02:51]} 6. O-O {[%clk 0:02:38]}  Bg7 {[%clk 0:02:51]} 7. c4 {[%clk 0:02:38]}  c6 {[%clk 0:02:50]} 8. d4 {[%clk 0:02:32]}  Nbd7 {[%clk 0:02:50]} 9. Nc3 {[%clk 0:02:28]}  Re8 {[%clk 0:02:49]} 10. Ba3+ {[%clk 0:02:27]}  c5 {[%clk 0:02:48]} 11. dxc5 {[%clk 0:02:23]}  Qa5 {[%clk 0:02:40]} 12. Nb5 {[%clk 0:02:24]}  a6 {[%clk 0:02:27]} 13. c6+ {[%clk 0:02:23]} 1-0


[Site "https://www.chess.com"]

[Event "Titled Tuesday Blitz February 28 Early 2023"]
[White "Golubev, Mikhail"]
[Black "Maghsoodloo, Parham"]
[WhiteFideId "14100983"]
[BlackFideId "12539929"]
[WhiteElo "2374"]
[BlackElo "2659"]
[Result "0-1"]
[Round "01"]
[TimeControl "180+2"]
[Date "2023.02.28"]
[WhiteClock "0:00:04"]
[BlackClock "0:00:48"]

1. e4 {[%clk 0:03:00]}  c5 {[%clk 0:02:59]} 2. Nf3 {[%clk 0:03:00]}  e6 {[%clk 0:02:59]} 3. d4 {[%clk 0:03:00]}  cxd4 {[%clk 0:03:00]} 4. Nxd4 {[%clk 0:03:00]}  Qc7 {[%clk 0:03:00]} 5. Nc3 {[%clk 0:02:55]}  Nc6 {[%clk 0:02:59]} 6. Be3 {[%clk 0:02:53]}  Nf6 {[%clk 0:02:57]} 7. Bd3 {[%clk 0:02:52]}  a6 {[%clk 0:02:53]} 8. O-O {[%clk 0:02:52]}  Be7 {[%clk 0:02:45]} 9. f4 {[%clk 0:02:48]}  d6 {[%clk 0:02:40]} 10. Qf3 {[%clk 0:02:43]}  Bd7 {[%clk 0:02:39]} 11. a4 {[%clk 0:02:35]}  O-O {[%clk 0:02:29]} 12. Qg3 {[%clk 0:02:26]}  Rad8 {[%clk 0:01:58]} 13. Kh1 {[%clk 0:02:16]}  g6 {[%clk 0:01:54]} 14. Nxc6 {[%clk 0:02:07]}  Bxc6 {[%clk 0:01:54]} 15. f5 {[%clk 0:02:06]}  Qd7 {[%clk 0:01:48]} 16. Bh6 {[%clk 0:01:59]}  Rfe8 {[%clk 0:01:48]} 17. fxg6 {[%clk 0:01:35]}  fxg6 {[%clk 0:01:40]} 18. e5 {[%clk 0:01:35]}  Nh5 {[%clk 0:01:37]} 19. Qg4 {[%clk 0:01:33]}  Bf8 {[%clk 0:01:37]} 20. Bxg6 {[%clk 0:01:10]}  hxg6 {[%clk 0:01:36]} 21. Qxg6+ {[%clk 0:01:10]}  Ng7 {[%clk 0:01:36]} 22. Rf2 {[%clk 0:01:03]}  dxe5 {[%clk 0:00:54]} 23. Raf1 {[%clk 0:01:01]}  e4 {[%clk 0:00:54]} 24. Rf7 {[%clk 0:00:37]}  Re7 {[%clk 0:00:55]} 25. Bxg7 {[%clk 0:00:15]}  Rxf7 {[%clk 0:00:54]} 26. Bxf8+ {[%clk 0:00:08]}  Kxf8 {[%clk 0:00:54]} 27. Qh6+ {[%clk 0:00:08]}  Kg8 {[%clk 0:00:54]} 28. Rxf7 {[%clk 0:00:07]}  Kxf7 {[%clk 0:00:50]} 29. Qh7+ {[%clk 0:00:05]}  Kf8 {[%clk 0:00:48]} 30. Qh8+ {[%clk 0:00:04]}  Ke7 {[%clk 0:00:48]} 0-1


[Site "https://www.chess.com"]

[Event "Titled Tuesday Blitz February 28 Early 2023"]
[White "Kamsky, Gata"]
[Black "Bettalli, Francesco"]
[WhiteFideId "2000024"]
[BlackFideId "2816453"]
[WhiteElo "2666"]
[BlackElo "2216"]
[Result "1/2-1/2"]
[Round "01"]
[TimeControl "180+2"]
[Date "2023.02.28"]
[WhiteClock "0:00:21"]
[BlackClock "0:01:28"]

1. d4 {[%clk 0:02:59]}  g6 {[%clk 0:02:55]} 2. c3 {[%clk 0:02:57]}  Bg7 {[%clk 0:02:56]} 3. Nf3 {[%clk 0:02:54]}  c6 {[%clk 0:02:56]} 4. e4 {[%clk 0:02:45]}  d5 {[%clk 0:02:55]} 5. Nbd2 {[%clk 0:02:42]}  dxe4 {[%clk 0:02:49]} 6. Nxe4 {[%clk 0:02:41]}  Nf6 {[%clk 0:02:50]} 7. Nxf6+ {[%clk 0:02:40]}  Bxf6 {[%clk 0:02:49]} 8. Bh6 {[%clk 0:02:39]}  Nd7 {[%clk 0:02:48]} 9. Be2 {[%clk 0:02:32]}  Qb6 {[%clk 0:02:47]} 10. Qb3 {[%clk 0:02:30]}  Nf8 {[%clk 0:02:46]} 11. O-O {[%clk 0:02:22]}  Be6 {[%clk 0:02:45]} 12. Bc4 {[%clk 0:01:58]}  Bxc4 {[%clk 0:02:33]} 13. Qxc4 {[%clk 0:01:58]}  Ne6 {[%clk 0:02:33]} 14. Rfe1 {[%clk 0:01:55]}  O-O-O {[%clk 0:02:25]} 15. b4 {[%clk 0:01:54]}  Rd5 {[%clk 0:02:24]} 16. Be3 {[%clk 0:01:50]}  Rhd8 {[%clk 0:02:23]} 17. a4 {[%clk 0:01:50]}  a6 {[%clk 0:02:21]} 18. Nd2 {[%clk 0:01:44]}  Bg5 {[%clk 0:02:14]} 19. Bxg5 {[%clk 0:01:37]}  Rxg5 {[%clk 0:02:13]} 20. Ne4 {[%clk 0:01:37]}  Rh5 {[%clk 0:02:12]} 21. Nc5 {[%clk 0:01:34]}  Nxc5 {[%clk 0:02:12]} 22. bxc5 {[%clk 0:01:34]}  Qc7 {[%clk 0:02:13]} 23. g3 {[%clk 0:01:33]}  e5 {[%clk 0:02:10]} 24. Re4 {[%clk 0:01:14]}  exd4 {[%clk 0:01:53]} 25. cxd4 {[%clk 0:01:13]}  Rhd5 {[%clk 0:01:52]} 26. Rae1 {[%clk 0:01:07]}  Kb8 {[%clk 0:01:47]} 27. Qb4 {[%clk 0:01:03]}  f5 {[%clk 0:01:41]} 28. Re8 {[%clk 0:01:02]}  Ka7 {[%clk 0:01:37]} 29. Rxd8 {[%clk 0:00:58]}  Qxd8 {[%clk 0:01:37]} 30. Rd1 {[%clk 0:00:49]}  a5 {[%clk 0:01:34]} 31. Qc3 {[%clk 0:00:48]}  f4 {[%clk 0:01:32]} 32. Rd3 {[%clk 0:00:41]}  fxg3 {[%clk 0:01:32]} 33. hxg3 {[%clk 0:00:40]}  h5 {[%clk 0:01:32]} 34. Qd2 {[%clk 0:00:27]}  g5 {[%clk 0:01:30]} 35. Qe3 {[%clk 0:00:22]}  h4 {[%clk 0:01:28]} 36. Kg2 {[%clk 0:00:21]} 1/2-1/2


[Site "https://www.chess.com"]

[Event "Titled Tuesday Blitz February 28 Early 2023"]
[White "Degenbaev, Aziz"]
[Black "Esipenko, Andrey"]
[WhiteFideId "13802640"]
[BlackFideId "24175439"]
[WhiteElo "2152"]
[BlackElo "2615"]
[Result "0-1"]
[Round "01"]
[TimeControl "180+2"]
[Date "2023.02.28"]
[WhiteClock "0:00:02"]
[BlackClock "0:01:06"]

1. e4 {[%clk 0:02:59]}  c6 {[%clk 0:02:56]} 2. d4 {[%clk 0:02:59]}  d5 {[%clk 0:02:56]} 3. e5 {[%clk 0:02:59]}  c5 {[%clk 0:02:55]} 4. dxc5 {[%clk 0:02:59]}  e6 {[%clk 0:02:55]} 5. a3 {[%clk 0:03:00]}  Bxc5 {[%clk 0:02:54]} 6. Qg4 {[%clk 0:02:51]}  Ne7 {[%clk 0:02:52]} 7. Nf3 {[%clk 0:02:51]}  Nbc6 {[%clk 0:02:50]} 8. b4 {[%clk 0:02:47]}  Bb6 {[%clk 0:02:50]} 9. Bd3 {[%clk 0:02:48]}  Ng6 {[%clk 0:02:42]} 10. Bb2 {[%clk 0:02:47]}  Bc7 {[%clk 0:02:08]} 11. h4 {[%clk 0:02:02]}  Kf8 {[%clk 0:02:06]} 12. Qg3 {[%clk 0:01:51]}  f6 {[%clk 0:02:01]} 13. Bxg6 {[%clk 0:01:43]}  hxg6 {[%clk 0:02:01]} 14. Qxg6 {[%clk 0:01:44]}  Nxe5 {[%clk 0:01:56]} 15. Nxe5 {[%clk 0:01:41]}  Bxe5 {[%clk 0:01:49]} 16. Bxe5 {[%clk 0:01:38]}  fxe5 {[%clk 0:01:49]} 17. Rh3 {[%clk 0:01:27]}  e4 {[%clk 0:01:47]} 18. Nc3 {[%clk 0:01:16]}  Qf6 {[%clk 0:01:46]} 19. Qxf6+ {[%clk 0:00:52]}  gxf6 {[%clk 0:01:46]} 20. O-O-O {[%clk 0:00:52]}  Ke7 {[%clk 0:01:43]} 21. h5 {[%clk 0:00:47]}  Bd7 {[%clk 0:01:43]} 22. Rdh1 {[%clk 0:00:31]}  Rag8 {[%clk 0:01:42]} 23. g3 {[%clk 0:00:28]}  Rh6 {[%clk 0:01:41]} 24. Rh4 {[%clk 0:00:24]}  Rg5 {[%clk 0:01:39]} 25. Ne2 {[%clk 0:00:23]}  Be8 {[%clk 0:01:32]} 26. Nf4 {[%clk 0:00:23]}  Kd6 {[%clk 0:01:27]} 27. Rd1 {[%clk 0:00:07]}  b5 {[%clk 0:01:27]} 28. Ng2 {[%clk 0:00:03]}  Rf5 {[%clk 0:01:19]} 29. Rxe4 {[%clk 0:00:02]}  Bxh5 {[%clk 0:01:14]} 30. g4 {[%clk 0:00:02]}  Rxf2 {[%clk 0:01:11]} 31. gxh5 {[%clk 0:00:02]}  Rxg2 {[%clk 0:01:10]} 32. Re3 {[%clk 0:00:01]}  Rxh5 {[%clk 0:01:08]} 33. Rc3 {[%clk 0:00:02]}  Rh4 {[%clk 0:01:07]} 34. Rc8 {[%clk 0:00:02]}  Rc4 {[%clk 0:01:06]} 0-1


[Site "https://www.chess.com"]

[Event "Titled Tuesday Blitz February 28 Early 2023"]
[White "Ronka, Erik"]
[Black "Grigoriants, Sergey"]
[WhiteFideId "505080"]
[BlackFideId "4130804"]
[WhiteElo "2264"]
[BlackElo "2502"]
[Result "0-1"]
[Round "01"]
[TimeControl "180+2"]
[Date "2023.02.28"]
[WhiteClock "0:00:09"]
[BlackClock "0:00:10"]

1. e4 {[%clk 0:02:59]}  c5 {[%clk 0:02:57]} 2. Nf3 {[%clk 0:02:58]}  Nc6 {[%clk 0:02:55]} 3. d4 {[%clk 0:02:58]}  cxd4 {[%clk 0:02:55]} 4. Nxd4 {[%clk 0:02:59]}  e6 {[%clk 0:02:56]} 5. Nc3 {[%clk 0:02:55]}  a6 {[%clk 0:02:56]} 6. Nxc6 {[%clk 0:02:52]}  bxc6 {[%clk 0:02:55]} 7. Bd3 {[%clk 0:02:53]}  d5 {[%clk 0:02:56]} 8. O-O {[%clk 0:02:53]}  Nf6 {[%clk 0:02:56]} 9. Re1 {[%clk 0:02:53]}  Be7 {[%clk 0:02:56]} 10. e5 {[%clk 0:02:53]}  Nd7 {[%clk 0:02:56]} 11. Qg4 {[%clk 0:02:54]}  g6 {[%clk 0:02:56]} 12. Bh6 {[%clk 0:02:49]}  Rb8 {[%clk 0:02:55]} 13. Nd1 {[%clk 0:02:14]}  Rb4 {[%clk 0:02:45]} 14. c4 {[%clk 0:01:45]}  dxc4 {[%clk 0:02:38]} 15. a3 {[%clk 0:01:39]}  Rb5 {[%clk 0:02:38]} 16. Bxc4 {[%clk 0:01:35]}  Nxe5 {[%clk 0:02:38]} 17. Qe4 {[%clk 0:00:58]}  f5 {[%clk 0:02:20]} 18. Qe2 {[%clk 0:00:43]}  Nxc4 {[%clk 0:02:16]} 19. Qxc4 {[%clk 0:00:44]}  Kf7 {[%clk 0:01:56]} 20. b4 {[%clk 0:00:31]}  Qd5 {[%clk 0:01:30]} 21. Qe2 {[%clk 0:00:31]}  Bf6 {[%clk 0:01:27]} 22. Rc1 {[%clk 0:00:30]}  c5 {[%clk 0:01:02]} 23. Nc3 {[%clk 0:00:24]}  Bxc3 {[%clk 0:01:01]} 24. Rxc3 {[%clk 0:00:25]}  Bb7 {[%clk 0:01:01]} 25. Qf1 {[%clk 0:00:08]}  Rd8 {[%clk 0:00:56]} 26. bxc5 {[%clk 0:00:05]}  Rxc5 {[%clk 0:00:57]} 27. Rce3 {[%clk 0:00:06]}  Rc6 {[%clk 0:00:35]} 28. h4 {[%clk 0:00:06]}  a5 {[%clk 0:00:29]} 29. Bg5 {[%clk 0:00:07]}  Ba6 {[%clk 0:00:27]} 30. R3e2 {[%clk 0:00:03]}  Rd7 {[%clk 0:00:19]} 31. f3 {[%clk 0:00:02]}  e5 {[%clk 0:00:13]} 32. Qf2 {[%clk 0:00:02]}  Bxe2 {[%clk 0:00:13]} 33. Qxe2 {[%clk 0:00:03]}  Re6 {[%clk 0:00:12]} 34. f4 {[%clk 0:00:04]}  exf4 {[%clk 0:00:11]} 35. Qf2 {[%clk 0:00:05]}  Qd4 {[%clk 0:00:10]} 36. Qxd4 {[%clk 0:00:04]}  Rxe1+ {[%clk 0:00:09]} 37. Kf2 {[%clk 0:00:04]}  Rxd4 {[%clk 0:00:10]} 38. Kxe1 {[%clk 0:00:04]}  Rd3 {[%clk 0:00:10]} 39. a4 {[%clk 0:00:04]}  Rd4 {[%clk 0:00:10]} 40. Kf2 {[%clk 0:00:04]}  Rxa4 {[%clk 0:00:10]} 41. h5 {[%clk 0:00:04]}  gxh5 {[%clk 0:00:10]} 42. Kf3 {[%clk 0:00:04]}  Rc4 {[%clk 0:00:10]} 43. Bh4 {[%clk 0:00:05]}  a4 {[%clk 0:00:10]} 44. Kf2 {[%clk 0:00:06]}  a3 {[%clk 0:00:10]} 45. Kg1 {[%clk 0:00:06]}  a2 {[%clk 0:00:11]} 46. Kh2 {[%clk 0:00:07]}  a1=Q {[%clk 0:00:11]} 47. Bf2 {[%clk 0:00:08]}  Qf1 {[%clk 0:00:11]} 48. Kh3 {[%clk 0:00:09]}  Qxf2 {[%clk 0:00:10]} 49. g4 {[%clk 0:00:09]}  Qg3# {[%clk 0:00:10]} 0-1


[Site "https://www.chess.com"]

[Event "Titled Tuesday Blitz February 28 Early 2023"]
[White "Steinberg, Nitzan"]
[Black "Khandelwal, Ankush"]
[WhiteFideId "2801795"]
[BlackFideId "413470"]
[WhiteElo "2486"]
[BlackElo "2263"]
[Result "1-0"]
[Round "01"]
[TimeControl "180+2"]
[Date "2023.02.28"]
[WhiteClock "0:01:17"]
[BlackClock "0:00:58"]

1. d4 {[%clk 0:02:57]}  Nf6 {[%clk 0:02:56]} 2. Nf3 {[%clk 0:02:57]}  e6 {[%clk 0:02:54]} 3. c4 {[%clk 0:02:56]}  d5 {[%clk 0:02:54]} 4. Nc3 {[%clk 0:02:56]}  Be7 {[%clk 0:02:52]} 5. cxd5 {[%clk 0:02:55]}  exd5 {[%clk 0:02:52]} 6. Bg5 {[%clk 0:02:56]}  O-O {[%clk 0:02:52]} 7. e3 {[%clk 0:02:56]}  c6 {[%clk 0:02:48]} 8. Bd3 {[%clk 0:02:56]}  Bg4 {[%clk 0:02:47]} 9. Qc2 {[%clk 0:02:56]}  h6 {[%clk 0:02:46]} 10. Bf4 {[%clk 0:02:50]}  Na6 {[%clk 0:02:46]} 11. a3 {[%clk 0:02:47]}  Nc7 {[%clk 0:02:45]} 12. Ne5 {[%clk 0:02:46]}  Bd7 {[%clk 0:02:33]} 13. O-O {[%clk 0:02:39]}  Ne6 {[%clk 0:02:33]} 14. Bg3 {[%clk 0:02:40]}  Nh5 {[%clk 0:02:31]} 15. Bh7+ {[%clk 0:02:25]}  Kh8 {[%clk 0:02:31]} 16. Bf5 {[%clk 0:02:26]}  Nxg3 {[%clk 0:02:24]} 17. hxg3 {[%clk 0:02:27]}  Bf6 {[%clk 0:02:10]} 18. Nf3 {[%clk 0:02:02]}  Re8 {[%clk 0:02:02]} 19. Rfe1 {[%clk 0:01:57]}  Ng5 {[%clk 0:02:00]} 20. Bxd7 {[%clk 0:01:55]}  Qxd7 {[%clk 0:02:01]} 21. Nh2 {[%clk 0:01:48]}  Ne4 {[%clk 0:02:00]} 22. Nxe4 {[%clk 0:01:47]}  Rxe4 {[%clk 0:02:01]} 23. b4 {[%clk 0:01:40]}  a5 {[%clk 0:01:45]} 24. Rab1 {[%clk 0:01:37]}  axb4 {[%clk 0:01:42]} 25. axb4 {[%clk 0:01:38]}  Rae8 {[%clk 0:01:40]} 26. Rec1 {[%clk 0:01:38]}  h5 {[%clk 0:01:39]} 27. Nf3 {[%clk 0:01:36]}  g5 {[%clk 0:01:34]} 28. b5 {[%clk 0:01:36]}  g4 {[%clk 0:01:33]} 29. Nd2 {[%clk 0:01:36]}  R4e6 {[%clk 0:01:30]} 30. Qf5 {[%clk 0:01:35]}  h4 {[%clk 0:01:24]} 31. Qh5+ {[%clk 0:01:34]}  Kg8 {[%clk 0:01:23]} 32. Qxg4+ {[%clk 0:01:35]}  Kf8 {[%clk 0:01:18]} 33. bxc6 {[%clk 0:01:34]}  bxc6 {[%clk 0:01:16]} 34. gxh4 {[%clk 0:01:35]}  Ke7 {[%clk 0:01:14]} 35. Nb3 {[%clk 0:01:23]}  Rh8 {[%clk 0:00:57]} 36. Nc5 {[%clk 0:01:21]}  Rxh4 {[%clk 0:00:58]} 37. Qxh4 {[%clk 0:01:16]}  Bxh4 {[%clk 0:00:58]} 38. Nxd7 {[%clk 0:01:17]} 1-0


[Site "https://www.chess.com"]

[Event "Titled Tuesday Blitz February 28 Early 2023"]
[White "Ramirez Allo, Eduardo"]
[Black "Abdrlauf, Elham"]
[WhiteFideId "2224178"]
[BlackFideId "1533533"]
[WhiteElo "2471"]
[BlackElo "2476"]
[Result "0-1"]
[Round "01"]
[TimeControl "180+2"]
[Date "2023.02.28"]
[WhiteClock "0:00:34"]
[BlackClock "0:01:16"]

1. d4 {[%clk 0:02:59]}  Nf6 {[%clk 0:02:59]} 2. Nf3 {[%clk 0:02:59]}  b6 {[%clk 0:02:58]} 3. g3 {[%clk 0:02:58]}  Bb7 {[%clk 0:02:59]} 4. Bg2 {[%clk 0:02:58]}  e6 {[%clk 0:02:59]} 5. O-O {[%clk 0:02:59]}  c5 {[%clk 0:02:59]} 6. c4 {[%clk 0:02:58]}  cxd4 {[%clk 0:03:00]} 7. Qxd4 {[%clk 0:02:59]}  Be7 {[%clk 0:02:58]} 8. Nc3 {[%clk 0:02:58]}  O-O {[%clk 0:02:58]} 9. b3 {[%clk 0:02:59]}  Nc6 {[%clk 0:02:57]} 10. Qd1 {[%clk 0:02:59]}  Rc8 {[%clk 0:02:56]} 11. Bb2 {[%clk 0:02:59]}  Qc7 {[%clk 0:02:49]} 12. Rc1 {[%clk 0:02:58]}  Rfd8 {[%clk 0:02:49]} 13. Nd5 {[%clk 0:02:45]}  exd5 {[%clk 0:02:44]} 14. cxd5 {[%clk 0:02:46]}  Qb8 {[%clk 0:02:40]} 15. dxc6 {[%clk 0:02:44]}  dxc6 {[%clk 0:02:41]} 16. Qc2 {[%clk 0:02:45]}  h6 {[%clk 0:02:33]} 17. Rfd1 {[%clk 0:02:44]}  c5 {[%clk 0:02:33]} 18. Nh4 {[%clk 0:02:36]}  Bxg2 {[%clk 0:02:33]} 19. Kxg2 {[%clk 0:02:37]}  Qb7+ {[%clk 0:02:06]} 20. Kg1 {[%clk 0:02:36]}  Qe4 {[%clk 0:01:59]} 21. Qxe4 {[%clk 0:01:57]}  Nxe4 {[%clk 0:02:00]} 22. Nf5 {[%clk 0:01:57]}  Bf8 {[%clk 0:01:59]} 23. f3 {[%clk 0:01:55]}  Ng5 {[%clk 0:01:49]} 24. Kf2 {[%clk 0:01:40]}  Ne6 {[%clk 0:01:49]} 25. e4 {[%clk 0:01:24]}  b5 {[%clk 0:01:44]} 26. Ne3 {[%clk 0:01:21]}  a5 {[%clk 0:01:36]} 27. a4 {[%clk 0:01:19]}  c4 {[%clk 0:01:30]} 28. bxc4 {[%clk 0:01:14]}  b4 {[%clk 0:01:27]} 29. Rxd8 {[%clk 0:00:57]}  Rxd8 {[%clk 0:01:27]} 30. Nd5 {[%clk 0:00:57]}  Nc5 {[%clk 0:01:26]} 31. Bd4 {[%clk 0:00:51]}  Nb3 {[%clk 0:01:19]} 32. Bb6 {[%clk 0:00:39]}  Rxd5 {[%clk 0:01:19]} 33. exd5 {[%clk 0:00:33]}  Nxc1 {[%clk 0:01:19]} 34. Bxa5 {[%clk 0:00:34]}  b3 {[%clk 0:01:19]} 35. Bc3 {[%clk 0:00:34]}  b2 {[%clk 0:01:15]} 36. Bxb2 {[%clk 0:00:34]}  Nd3+ {[%clk 0:01:15]} 37. Ke3 {[%clk 0:00:33]}  Nxb2 {[%clk 0:01:16]} 38. Kd4 {[%clk 0:00:34]}  Nxa4 {[%clk 0:01:16]} 0-1


[Site "https://www.chess.com"]